bitfinex-derivatives/quotes_ETHF0:USTF0_20251203
["timestamp","ask_amount","ask_price","bid_price","bid_amount"]
[1764727305916,1.3691,3017.5,3017.4,1.7613]
[1764727306118,2.21087125,3018.0,3017.9,1.7613]
[1764727306624,2.21087125,3018.0,3017.3,0.00875956]
[1764727306625,0.50817125,3018.0,3017.3,0.00875956]
[1764727306822,0.50817125,3018.0,3017.4,1.7613]
[1764727307022,0.00497125,3018.0,3017.9,1.7613]
[1764727307527,0.87087125,3018.0,3017.9,1.7613]
[1764727307729,1.70767125,3018.0,3017.9,1.7613]
[1764727308026,0.00497125,3018.0,3017.9,1.7613]
[1764727308327,0.87087125,3018.0,3017.9,1.7613]
[1764727308832,0.00497125,3018.0,3017.9,1.7613]
[1764727309928,2.21087125,3018.0,3017.9,1.7613]
[1764727310319,1.37407125,3018.0,3017.9,1.7613]
[1764727310524,0.87087125,3018.0,3017.9,1.7613]
[1764727310727,0.00497125,3018.0,3017.9,1.7613]
[1764727311433,0.00497125,3018.0,3017.9,5.13474]
[1764727315526,0.00407691,3018.5,3018.4,1.7613]
[1764727316126,4.698,3019.0,3018.9,1.7613]
[1764727316332,5.46254954,3019.0,3018.9,1.7613]
[1764727316535,6.29934954,3019.0,3018.9,0.8947]
[1764727317334,6.30229028,3019.0,3018.9,0.8947]
[1764727317835,0.8659,3018.6,3018.5,1.8826]
[1764727318031,0.8659,3018.6,3018.5,1.7613]
[1764727318233,1.7027,3018.6,3018.5,1.7613]
[1764727319037,0.8659,3018.6,3018.5,1.7613]
[1764727319733,3.83504074,3019.0,3018.5,1.7613]
[1764727319940,2.46664451,3018.9,3018.8,0.8947]
[1764727320233,3.21074074,3019.0,3018.9,1.7613]
[1764727320433,0.00294074,3019.0,3018.9,1.7613]
[1764727321331,2.20884074,3019.0,3018.9,0.8947]
[1764727321536,1.7027,3018.8,3018.7,4.9691]
[1764727321738,1.7027,3018.8,3018.7,0.8947]
[1764727321940,1.7027,3018.8,3018.7,1.7613]
[1764727322341,1.7027,3018.8,3018.3,3.2078]
[1764727322930,1.7027,3018.4,3018.3,3.2078]
[1764727323432,0.76291588,3018.4,3017.9,4.8445]
[1764727323639,0.7943,3018.0,3017.9,4.8445]
[1764727323840,2.1828,3018.0,3017.9,3.9567]
[1764727324226,2.1828,3018.0,3017.9,3.2078]
[1764727324631,2.1828,3018.0,3017.5,0.3193]
[1764727324834,0.7943,3017.5,3017.4,4.8445]
[1764727325032,2.1828,3017.5,3017.4,3.9567]
[1764727325640,0.00497125,3017.8,3017.4,4.8445]
[1764727325936,2.1828,3017.5,3017.4,4.8445]
[1764727326134,0.7943,3017.5,3017.4,4.8445]
[1764727326330,1.65757125,3017.8,3017.7,0.7489]
[1764727327139,0.7943,3017.5,3017.4,4.8445]
[1764727328040,1.65757125,3017.8,3017.7,1.6367]
[1764727328246,0.79927125,3017.8,3017.7,1.6367]
[1764727329039,0.7943,3017.5,3017.4,4.8445]
[1764727329344,1.65757125,3017.8,3017.7,0.7489]
[1764727329642,0.00497125,3017.8,3017.7,1.6367]
[1764727331832,1.65757125,3017.8,3017.7,1.6367]
[1764727332029,0.79927125,3017.8,3017.7,1.6367]
[1764727332635,0.00497125,3017.8,3017.7,1.6367]
[1764727333341,4.8604,3018.9,3018.8,0.7489]
[1764727333549,3.2078,3018.9,3018.8,1.6367]
[1764727334346,0.79724074,3019.0,3018.9,1.6367]
[1764727334644,0.00294074,3019.0,3018.9,1.6367]
[1764727339545,2.1828,3020.0,3019.9,1.6367]
[1764727339748,2.1828,3020.0,3019.4,3.2078]
[1764727340550,2.18703922,3020.0,3019.9,0.7489]
[1764727340751,2.18703922,3020.0,3019.4,3.21581759]
[1764727342858,2.1828,3019.5,3019.4,3.96471759]
[1764727343055,2.1828,3019.5,3019.4,4.85251759]
[1764727343555,2.1828,3019.5,3019.4,3.21581759]
[1764727343744,2.1828,3019.5,3019.4,4.85251759]
[1764727343945,1.3245,3019.5,3019.4,4.85251759]
[1764727344142,0.53443922,3020.0,3019.4,4.85251759]
[1764727344758,2.1828,3019.5,3019.4,3.96471759]
[1764727345259,2.1828,3019.5,3019.4,0.75691759]
[1764727346754,2.1828,3019.5,3019.4,0.00801759]
[1764727348159,2.1828,3019.5,3019.4,0.75691759]
[1764727348347,2.1828,3019.5,3019.4,1.64471759]
[1764727348751,4.8604,3019.8,3019.7,0.7489]
[1764727349352,1.6526,3019.5,3019.4,1.64471759]
[1764727349658,2.1828,3019.5,3019.4,1.64471759]
[1764727351157,0.53443922,3020.0,3019.4,1.64471759]
[1764727351357,2.18703922,3020.0,3019.9,0.7489]
[1764727353254,2.18703922,3020.0,3019.9,1.6367]
[1764727353453,1.32873922,3020.0,3019.9,1.5178]
[1764727353652,0.00423922,3020.0,3019.9,1.5178]
[1764727354257,0.00423922,3020.0,3019.9,4.7256]
[1764727354457,4.764,3020.7,3020.6,1.5439]
[1764727354962,4.764,3020.7,3020.6,0.775]
[1764727355159,4.764,3020.7,3020.6,1.5825]
[1764727355352,4.76805599,3020.7,3020.6,1.5825]
[1764727355558,0.7364,3020.4,3020.3,1.565]
[1764727356061,1.5162,3020.4,3020.3,1.565]
[1764727356259,1.5162,3020.4,3020.3,0.7575]
[1764727356556,2.0024,3020.0,3019.9,1.565]
[1764727357058,0.4862,3020.5,3019.9,1.565]
[1764727357266,4.72805599,3020.7,3020.6,0.7575]
[1764727357859,4.72805599,3020.7,3020.0,0.4651]
[1764727358357,4.72805599,3020.7,3019.9,3.2078]
[1764727358558,1.5162,3020.0,3019.9,4.7728]
[1764727358761,2.0024,3020.0,3019.9,3.9653]
[1764727359059,2.0024,3020.0,3019.9,0.7575]
[1764727359261,1.5162,3019.6,3019.5,4.7728]
[1764727359966,1.5162,3019.6,3019.5,3.9653]
[1764727360159,0.4862,3020.0,3019.5,3.9653]
[1764727360160,0.4862,3020.0,3019.5,4.7728]
[1764727360354,2.0024,3020.0,3019.9,1.565]
[1764727360556,2.0024,3020.0,3019.5,3.2078]
[1764727360857,1.5162,3019.6,3019.5,4.7728]
[1764727361053,1.5162,3019.6,3019.5,3.2078]
[1764727361268,0.7364,3019.6,3019.5,4.7728]
[1764727361764,0.4862,3020.0,3019.5,4.7728]
[1764727362160,0.7364,3019.6,3019.5,4.7728]
[1764727362359,1.5162,3019.6,3019.5,4.7728]
[1764727363257,1.5162,3019.6,3019.5,3.2078]
[1764727363568,1.5162,3019.6,3019.5,3.9653]
[1764727363767,1.5162,3019.6,3019.5,4.7728]
[1764727363966,1.5162,3019.6,3019.5,3.9653]
[1764727364371,1.5162,3019.6,3019.5,3.2078]
[1764727364669,1.5162,3019.6,3019.5,4.7728]
[1764727365169,1.5162,3019.6,3019.5,3.9653]
[1764727365369,1.5162,3019.6,3019.5,4.7728]
[1764727365563,0.7364,3019.6,3019.5,4.7728]
[1764727365866,1.5162,3019.6,3019.5,3.2078]
[1764727366369,1.5162,3019.6,3019.5,3.9653]
[1764727367069,1.5162,3019.6,3019.5,4.7728]
[1764727368266,1.5162,3019.6,3019.5,1.565]
[1764727369064,0.4862,3020.0,3019.9,1.565]
[1764727369065,2.0024,3020.0,3019.9,1.565]
[1764727369366,2.76586419,3020.0,3019.9,1.565]
[1764727369573,2.0024,3020.0,3019.9,1.565]
[1764727370069,2.76588906,3020.0,3019.9,0.7575]
[1764727370262,2.76588906,3020.0,3019.9,1.565]
[1764727370463,0.7364,3020.0,3019.9,1.565]
[1764727370663,4.724,3020.2,3020.1,1.565]
[1764727370865,5.48747738,3020.2,3019.6,3.37335]
[1764727371072,2.27967738,3020.1,3020.0,0.7575]
[1764727371675,1.5162,3019.7,3019.6,1.73055]
[1764727371972,3.2078,3020.3,3019.9,1.565]
[1764727372172,4.724,3020.3,3020.2,1.565]
[1764727372368,3.97119699,3020.3,3020.2,1.565]
[1764727372671,7.06885599,3020.7,3020.0,0.63063]
[1764727372874,1.2226,3020.5,3020.4,1.565]
[1764727373075,2.76570949,3020.5,3020.4,1.565]
[1764727373666,1.5162,3020.1,3020.0,1.73053]
[1764727374378,1.5162,3020.1,3020.0,0.92303]
[1764727374874,1.5162,3020.1,3020.0,1.73053]
[1764727375180,1.5162,3020.1,3019.5,1.565]
[1764727375181,1.5162,3019.6,3019.5,1.565]
[1764727375577,0.7364,3019.6,3019.5,1.565]
[1764727376077,2.0024,3020.0,3019.9,1.565]
[1764727376278,1.2226,3020.0,3019.9,1.565]
[1764727376781,2.0024,3020.0,3019.5,0.3108]
[1764727376976,1.2226,3020.0,3019.9,1.565]
[1764727377878,3.2078,3020.3,3019.9,1.565]
[1764727378083,4.724,3020.3,3020.2,1.565]
[1764727378282,4.724,3020.3,3020.2,0.7575]
[1764727378283,5.48732994,3020.3,3020.2,0.7575]
[1764727378576,5.48732994,3020.3,3020.2,1.565]
[1764727378773,5.48732994,3020.3,3020.2,0.7575]
[1764727379475,5.48732994,3020.3,3020.2,1.565]
[1764727379675,5.48732994,3020.3,3020.2,0.7575]
[1764727379973,0.7364,3019.9,3019.8,4.7728]
[1764727380169,3.2078,3020.3,3019.8,4.7728]
[1764727380582,0.7364,3019.9,3019.8,4.7728]
[1764727380782,3.2078,3020.3,3019.4,4.78081759]
[1764727380783,2.0024,3019.5,3019.4,4.78081759]
[1764727382482,2.0024,3019.5,3019.4,3.97331759]
[1764727382879,2.0024,3019.5,3019.4,4.78081759]
[1764727383077,2.0824,3020.0,3019.4,3.21581759]
[1764727383278,0.7935,3019.5,3019.4,4.75761759]
[1764727383789,0.4862,3020.0,3019.4,4.75761759]
[1764727383981,0.75903008,3019.9,3019.4,4.75761759]
[1764727384176,0.4862,3020.0,3019.4,4.75761759]
[1764727384377,2.071,3019.5,3019.4,4.75761759]
[1764727384576,2.071,3019.5,3019.4,3.99171759]
[1764727384786,0.7935,3019.5,3019.4,4.75761759]
[1764727385685,2.071,3019.5,3019.4,4.75761759]
[1764727385985,2.071,3019.5,3019.4,3.99171759]
[1764727386388,2.071,3019.5,3019.4,4.75761759]
[1764727386790,4.804,3019.8,3019.7,1.5418]
[1764727386986,5.56344116,3019.8,3019.7,0.7759]
[1764727387287,5.56344116,3019.8,3019.4,3.21581759]
[1764727387288,4.804,3020.2,3020.1,1.5418]
[1764727387486,5.5634956,3020.2,3020.1,1.5418]
[1764727387690,5.5634956,3020.2,3020.1,0.7759]
[1764727388487,5.5634956,3020.2,3019.5,0.47575]
[1764727388688,2.3556956,3020.1,3020.0,0.7759]
[1764727388988,2.3556956,3020.1,3020.0,1.5418]
[1764727389186,0.7594956,3020.1,3020.0,1.9863]
[1764727389381,1.5962,3020.2,3020.1,1.5418]
[1764727389588,2.35593151,3020.2,3020.1,1.5418]
[1764727391294,1.55323151,3020.2,3020.1,1.5418]
[1764727391682,0.75973151,3020.2,3020.1,1.5418]
[1764727391886,0.75973151,3020.2,3020.1,4.7496]
[1764727392488,0.4862,3020.5,3020.1,3.2078]
[1764727392786,0.4862,3020.5,3020.3,1.5418]
[1764727392787,2.35576361,3020.4,3020.3,1.5418]
[1764727392991,1.55306361,3020.4,3020.3,1.5418]
[1764727393193,0.75956361,3020.4,3020.3,1.5418]
[1764727393592,1.2797,3020.5,3020.4,1.5418]
[1764727393785,1.5962,3020.2,3020.1,0.16552]
[1764727393991,1.5962,3020.2,3020.1,0.7759]
[1764727394692,0.7935,3019.8,3019.7,4.7496]
[1764727394986,0.4862,3020.5,3019.7,4.7496]
[1764727395190,0.75933711,3020.4,3019.7,4.7496]
[1764727395390,2.0824,3020.5,3020.4,1.5418]
[1764727395592,2.84168383,3020.5,3020.4,1.5418]
[1764727395791,2.84168383,3020.5,3019.8,0.16554]
[1764727395993,0.75928383,3020.4,3019.8,0.16554]
[1764727396193,0.4862,3020.5,3019.8,0.16554]
[1764727396394,1.5962,3019.9,3019.8,1.70734]
[1764727396589,1.5962,3019.9,3019.8,0.7759]
[1764727396791,1.5962,3019.9,3019.8,1.5418]
[1764727397203,4.804,3020.3,3020.2,1.5418]
[1764727397502,1.5962,3019.8,3019.7,4.7496]
[1764727397703,0.7935,3019.8,3019.7,4.7496]
[1764727397900,2.071,3020.0,3019.9,1.5418]
[1764727398201,1.2683,3020.0,3019.9,1.5418]
[1764727398394,2.071,3020.0,3019.9,1.5418]
[1764727398995,1.5962,3019.8,3019.7,4.7496]
[1764727401496,2.071,3020.0,3019.9,1.5418]
[1764727402608,2.071,3020.0,3019.9,0.7759]
[1764727402905,2.071,3020.0,3019.9,1.5418]
[1764727403502,2.071,3020.0,3019.9,0.7759]
[1764727404104,2.071,3020.0,3019.9,1.5418]
[1764727404512,1.5962,3019.6,3019.5,4.7496]
[1764727404806,2.071,3020.0,3019.9,0.7759]
[1764727405211,2.071,3020.0,3019.9,1.5418]
[1764727405512,2.071,3020.0,3019.9,0.7759]
[1764727406013,0.7935,3019.7,3019.6,1.70735]
[1764727406515,4.804,3020.3,3020.2,1.5418]
[1764727406714,5.56366604,3020.3,3020.2,1.5418]
[1764727407012,5.56366604,3020.3,3020.2,0.7759]
[1764727407207,5.56366604,3020.3,3019.9,3.2078]
[1764727407409,2.071,3020.0,3019.9,0.7759]
[1764727407818,0.7935,3019.6,3019.5,4.91516]
[1764727408016,3.2078,3020.3,3019.9,1.5418]
[1764727408319,1.55313685,3020.2,3020.1,1.5418]
[1764727408618,0.7935,3020.5,3020.4,1.5418]
[1764727408923,4.80805599,3020.7,3020.6,1.5418]
[1764727409221,5.56762286,3020.7,3020.6,1.5418]
[1764727410019,1.2683,3021.5,3021.4,1.5418]
[1764727410222,2.8302502,3021.5,3021.4,1.5418]
[1764727410415,2.8302502,3021.5,3021.4,0.7759]
[1764727410921,2.83435643,3021.5,3021.4,0.7759]
[1764727411520,0.76335643,3021.5,3021.4,1.5418]
[1764727411820,0.00410623,3021.5,3021.4,1.5418]
[1764727412122,0.79760623,3021.5,3021.4,1.5418]
[1764727412318,0.00410623,3021.5,3021.4,1.5418]
[1764727414226,1e-08,3021.5,3021.4,1.5418]
[1764727414723,1e-08,3021.5,3021.4,1.70725]
[1764727415115,3.2078,3022.2,3022.1,1.69961]
[1764727415319,3.2078,3022.6,3022.5,1.544]
[1764727415923,3.2078,3022.6,3022.5,1.9885]
[1764727416224,3.21068434,3022.6,3022.5,1.99112466]
[1764727416520,4.83348434,3022.6,3022.5,1.54662466]
[1764727416719,4.02218434,3022.6,3022.5,1.54662466]
[1764727417122,4.83348434,3022.6,3022.5,0.74742466]
[1764727417321,4.83348434,3022.6,3022.5,0.00262466]
[1764727417522,1.6228,3021.8,3021.7,4.7518]
[1764727417726,1.6228,3021.8,3021.3,3.2078]
[1764727418324,1.6228,3021.8,3021.7,1.544]
[1764727418523,0.8115,3021.8,3021.7,1.54654326]
[1764727418723,1.6228,3021.8,3021.7,0.74734326]
[1764727419022,2.0958,3022.0,3021.9,0.7448]
[1764727419229,0.8115,3021.8,3021.7,1.54654326]
[1764727419420,1.6228,3021.8,3021.7,0.74734326]
[1764727419621,1.6228,3021.8,3021.7,0.00254326]
[1764727420128,1.6228,3021.8,3021.7,0.74734326]
[1764727420427,1.6228,3021.8,3021.7,0.00254326]
[1764727422123,1.6228,3021.8,3021.7,1.54654326]
[1764727422328,3.2078,3022.1,3022.0,1.544]
[1764727422516,4.0193,3022.1,3022.0,1.544]
[1764727422920,3.2078,3022.1,3022.0,1.9317]
[1764727423318,3.2078,3022.5,3022.4,1.544]
[1764727425827,2.0958,3022.5,3022.4,3.9526]
[1764727426034,0.81438434,3022.6,3022.5,1.544]
[1764727426531,1.62568434,3022.6,3022.5,1.544]
[1764727426732,0.81438434,3022.6,3022.5,1.544]
[1764727427438,1.62568434,3022.6,3022.5,1.544]
[1764727427929,0.81438434,3022.6,3022.5,1.544]
[1764727428128,0.00288434,3022.6,3022.5,1.544]
[1764727428328,0.00288434,3022.6,3022.5,1.9885]
[1764727428531,0.00288434,3022.6,3022.5,2.15389]
[1764727428824,3.6826,3023.5,3022.6,0.16538]
[1764727429027,1.6228,3022.8,3022.7,0.74976269]
[1764727429241,0.8115,3022.8,3022.7,1.54896269]
[1764727429529,1.6228,3022.8,3022.7,1.54896269]
[1764727429735,1.2845,3023.0,3022.9,1.544]
[1764727430039,2.0995538,3023.0,3022.9,1.544]
[1764727430226,2.0995538,3023.0,3022.9,0.7448]
[1764727430426,2.0995538,3023.0,3022.9,1.544]
[1764727430839,2.0995538,3023.0,3022.9,0.7448]
[1764727431829,1.6228,3022.8,3022.7,0.00496269]
[1764727432032,2.0995538,3023.0,3022.9,1.544]
[1764727432231,1.2882538,3023.0,3022.9,1.544]
[1764727432433,0.0037538,3023.0,3022.9,1.544]
[1764727432631,2.0995538,3023.0,3022.9,0.7448]
[1764727432831,1.6228,3022.8,3022.7,0.74976269]
[1764727433037,1.6228,3022.8,3022.7,0.00496269]
[1764727433440,1.6228,3022.8,3022.7,0.74976269]
[1764727433736,1.6228,3022.8,3022.7,0.00496269]
[1764727435040,1.6228,3022.8,3022.7,0.74976269]
[1764727435542,1.6228,3022.8,3022.7,0.00496269]
[1764727437939,1.6228,3022.8,3022.7,0.74976269]
[1764727438137,1.6228,3022.8,3022.7,1.54896269]
[1764727438335,1.6228,3022.8,3022.7,0.74976269]
[1764727438538,1.6228,3022.8,3022.7,1.54896269]
[1764727438944,1.6228,3022.8,3022.7,0.74976269]
[1764727439145,1.6228,3022.8,3022.7,0.00496269]
[1764727441233,2.38131313,3022.8,3022.7,0.00496269]
[1764727441829,2.38131313,3022.8,3022.0,3.37322]
[1764727442038,2.0958,3022.5,3022.4,0.7448]
[1764727442845,2.0958,3022.5,3022.4,1.544]
[1764727443438,4.7311,3022.7,3022.6,1.5056]
[1764727443938,3.9646,3022.7,3022.6,1.5056]
[1764727444134,4.7311,3022.7,3022.6,1.5056]
[1764727444331,4.7311,3022.7,3022.6,0.7693]
[1764727444543,1.5233,3022.4,3022.3,1.671]
[1764727444739,3.2078,3022.7,3022.3,1.671]
[1764727444944,4.7311,3022.7,3022.6,0.7693]
[1764727446040,4.7311,3022.7,3022.6,1.5056]
[1764727446839,4.7311,3022.7,3022.6,0.7693]
[1764727447839,1.5233,3022.4,3022.3,0.9347]
[1764727448038,1.5233,3022.4,3022.3,0.1654]
[1764727448536,1.5233,3022.4,3022.3,1.671]
[1764727449545,1.5233,3022.4,3022.3,0.9347]
[1764727450133,1.5233,3022.2,3022.1,0.00496269]
[1764727450541,2.28331694,3022.2,3022.1,0.00496269]
[1764727453146,5.49111694,3022.2,3022.1,0.00496269]
[1764727455540,5.49111694,3022.2,3022.1,0.77426269]
[1764727455839,5.49111694,3022.2,3022.1,1.51056269]
[1764727456039,1.2331,3022.5,3022.4,1.5056]
[1764727456245,1.99309648,3022.5,3022.4,1.5056]
[1764727456444,3.2078,3022.6,3022.5,1.5056]
[1764727456650,4.72452805,3022.6,3022.5,1.5056]
[1764727457245,3.2078,3022.6,3022.5,1.5056]
[1764727457549,0.7568,3022.4,3022.3,0.1654]
[1764727457747,1.2331,3022.5,3022.4,1.5056]
[1764727457948,1.52823418,3022.8,3022.7,0.7693]
[1764727458848,0.00493418,3022.8,3022.7,1.5056]
[1764727459544,3.2078,3023.4,3023.3,1.5056]
[1764727459848,2.97997696,3024.8,3023.3,1.5056]
[1764727459849,0.4763,3025.0,3023.6,0.16533]
[1764727460146,0.4763,3024.5,3023.7,0.16532]
[1764727460346,0.7568,3024.9,3023.9,1.75773303]
[1764727460546,1.52732356,3024.9,3024.1,0.00496269]
[1764727460851,1.52732356,3024.9,3024.1,0.00779987]
[1764727461541,0.00402356,3024.9,3024.8,1.5056]
[1764727461845,1.52732356,3024.9,3024.8,0.7693]
[1764727462052,1.52732356,3024.9,3024.8,1.5056]
[1764727462248,0.76082356,3024.9,3024.8,1.5056]
[1764727462548,0.00402356,3024.9,3024.8,1.5056]
[1764727462740,0.00402356,3024.9,3024.8,4.87867]
[1764727462942,3.2078,3026.3,3025.9,1.5056]
[1764727463143,0.7568,3026.3,3026.2,1.5056]
[1764727463455,1.9996,3027.5,3026.2,8.53045346]
[1764727463752,4.44948836,3027.5,3025.8,0.00496269]
[1764727463947,1.5233,3025.9,3025.8,0.00496269]
[1764727464462,1.5233,3025.9,3024.5,0.2496]
[1764727465350,1.52826268,3025.5,3024.9,0.00496269]
[1764727465558,2.00456268,3025.5,3024.9,0.00496269]
[1764727465945,1.9996,3025.0,3024.9,0.00496269]
[1764727466145,2.00276473,3025.0,3024.9,0.00496269]
[1764727466344,1.23626473,3025.0,3024.9,0.00496269]
[1764727467357,2.00276473,3025.0,3024.9,0.00496269]
[1764727467544,0.47946473,3025.0,3024.4,0.7693]
[1764727468253,0.47946473,3025.0,3024.9,1.5056]
[1764727468254,0.00316473,3025.0,3024.9,1.5056]
[1764727468449,0.00496268,3025.5,3025.4,1.5056]
[1764727468656,0.4763,3026.5,3025.4,1.5056]
[1764727469251,0.4763,3026.5,3025.5,0.4599]
[1764727469445,0.47932891,3026.5,3025.5,0.4599]
[1764727469850,0.00496269,3026.3,3026.2,1.5056]
[1764727470652,0.00302891,3026.5,3026.4,1.5056]
[1764727470853,0.00302891,3026.5,3026.4,1.50974849]
[1764727471153,0.4763,3027.5,3026.4,4.96714849]
[1764727471356,3.6841,3028.0,3027.9,0.7693]
[1764727471357,3.2078,3028.0,3027.9,0.7693]
[1764727471567,3.2078,3028.0,3027.2,2.22903693]
[1764727471568,0.7568,3028.0,3027.2,3.791]
[1764727471861,0.4763,3028.2,3027.3,0.00495385]
[1764727472061,2.70533693,3028.8,3027.3,0.00495385]
[1764727472260,0.00323829,3028.8,3028.7,0.7693]
[1764727472558,0.76003829,3028.8,3028.7,0.00339348]
[1764727473055,0.01859549,3028.8,3028.7,1.56389348]
[1764727473257,1.95756958,3028.8,3028.7,0.00339348]
[1764727473456,0.03116958,3028.8,3028.7,1.90889348]
[1764727473654,0.04374367,3028.8,3028.7,1.90889348]
[1764727473850,0.4763,3030.6,3028.7,1.90889348]
[1764727473851,0.4763,3030.6,3028.8,0.4629]
[1764727474066,2.22903693,3030.2,3029.2,0.00495385]
[1764727474658,0.4718,3031.8,3030.2,1.9055]
[1764727474959,0.00374094,3030.3,3030.2,1.232]
[1764727475150,0.00374094,3030.3,3029.4,0.4629]
[1764727475460,0.00374094,3030.3,3028.7,0.16844348]
[1764727475666,0.00374094,3030.3,3029.1,2.22903693]
[1764727475856,0.00374094,3030.3,3029.6,0.6666]
[1764727476062,0.4718,3031.2,3029.9,2.22903693]
[1764727476251,0.4718,3031.2,3029.7,4.37959236]
[1764727476456,0.4718,3031.2,3029.7,0.16499]
[1764727476657,0.4718,3031.2,3029.6,0.6666]
[1764727476658,2.22903693,3031.0,3029.6,0.6666]
[1764727477056,2.23308555,3031.0,3029.2,0.00495385]
[1764727477352,0.00404862,3031.0,3029.3,6.51011229]
[1764727478651,2.22903693,3030.7,3029.2,0.00495385]
[1764727479155,2.23308555,3031.0,3029.2,0.00495385]
[1764727479352,0.01256863,3030.0,3029.2,0.00495385]
[1764727479768,0.01780566,3029.6,3029.2,0.00495385]
[1764727480059,0.03037429,3029.4,3029.2,0.00495385]
[1764727480363,3.2078,3030.7,3029.3,3.19523137]
[1764727480563,0.6596,3030.3,3030.1,3.2078]
[1764727481470,1.1033,3030.2,3030.1,3.2078]
[1764727481759,0.00404862,3031.0,3030.1,4.3409]
[1764727481958,2.2291,3030.6,3030.5,3.2078]
[1764727482360,0.00404862,3031.0,3030.5,3.2078]
[1764727482960,1.1033,3030.6,3030.5,3.2078]
[1764727483161,2.2291,3030.6,3030.5,3.2078]
[1764727483368,2.8887,3030.6,3030.5,3.2078]
[1764727484767,0.00404862,3031.0,3030.5,3.2078]
[1764727485060,0.00404862,3031.0,3030.9,5.395]
[1764727485267,0.00404862,3031.0,3030.9,4.34445082]
[1764727485459,2.23314862,3031.0,3030.9,2.88837106]
[1764727485665,2.8887,3030.6,3030.5,3.2078]
[1764727486362,2.8887,3030.6,3029.4,0.2737]
[1764727486363,2.2291,3030.1,3030.0,3.2078]
[1764727486863,2.2542677,3030.1,3030.0,3.21019453]
[1764727487467,2.26685155,3030.1,3030.0,3.21019453]
[1764727487665,2.27451986,3030.1,3030.0,3.21019453]
[1764727488362,5.48231986,3030.1,3030.0,0.00239453]
[1764727489071,2.2291,3029.6,3029.5,3.2078]
[1764727489269,2.2291,3029.3,3029.1,3.2078]
[1764727489665,2.27451986,3029.3,3029.1,3.2078]
[1764727489871,1.14871986,3029.3,3029.1,3.2078]
[1764727490063,2.27451986,3029.3,3029.2,0.00885407]
[1764727491369,2.70293693,3030.0,3029.2,2.19605407]
[1764727491370,0.4739,3030.0,3029.2,2.19605407]
[1764727492973,0.4739,3030.0,3029.2,0.00885407]
[1764727493177,0.01255317,3029.6,3029.2,0.00885407]
[1764727493476,2.2291,3029.3,3029.2,0.00885407]
[1764727493674,2.25420634,3029.3,3029.2,0.00885407]
[1764727494067,2.26675951,3029.3,3029.2,0.00885407]
[1764727494572,2.27451986,3029.3,3029.2,0.00885407]
[1764727495172,2.2291,3029.2,3028.3,3.2078]
[1764727495371,3.35483693,3029.2,3028.3,3.2078]
[1764727495668,2.2291,3028.4,3028.3,3.2078]
[1764727496074,2.23287523,3028.4,3028.3,3.21055189]
[1764727496572,2.27829509,3028.4,3028.3,3.21055189]
[1764727496974,5.48609509,3028.4,3028.3,0.00275189]
[1764727497371,6.2144217,3028.4,3028.3,0.00275189]
[1764727497872,2.2291,3028.1,3028.0,0.00495385]
[1764727498065,2.2291,3027.6,3027.5,3.2078]
[1764727498364,1.1033,3027.2,3027.1,3.2078]
[1764727498567,2.27451986,3027.2,3027.1,3.2078]
[1764727499066,2.27451986,3027.2,3027.1,3.21056344]
[1764727499676,2.2291,3026.9,3026.8,0.00495385]
[1764727499872,0.73018043,3026.9,3026.4,3.07095585]
[1764727500367,0.73018043,3026.9,3025.2,0.6666]
[1764727500368,3.37298,3026.5,3025.8,3.2078]
[1764727500578,0.04541986,3026.2,3025.2,0.6666]
[1764727500767,0.73018043,3026.1,3025.8,0.66975]
[1764727500972,0.73018043,3026.0,3025.8,0.66975]
[1764727501179,0.73018043,3025.9,3025.8,0.00315]
[1764727501596,0.04541986,3025.9,3025.8,0.00315]
[1764727501881,1.72875851,3026.6,3026.4,0.6666]
[1764727502075,3.2078,3026.5,3026.4,0.6666]
[1764727502277,2.22903693,3027.0,3025.8,0.66975]
[1764727502883,3.2078,3026.5,3025.8,0.66975]
[1764727503274,3.2078,3026.1,3025.8,0.66975]
[1764727503776,13.247,3026.5,3025.8,0.66975]
[1764727503981,3.2078,3026.2,3025.8,0.66975]
[1764727504284,5.43683693,3026.2,3025.8,0.00315]
[1764727504470,5.43683693,3026.2,3025.6,0.00495385]
[1764727504776,2.22903693,3025.8,3025.2,3.2078]
[1764727504968,2.22903693,3025.8,3024.0,0.8319]
[1764727504969,2.22903693,3025.4,3024.3,3.2078]
[1764727505170,3.2078,3024.9,3024.3,3.2078]
[1764727505371,3.2078,3024.9,3024.0,0.6666]
[1764727505372,3.2078,3024.8,3024.1,3.2078]
[1764727505576,3.21125545,3024.8,3024.1,3.21148708]
[1764727505788,3.2162093,3024.8,3024.1,3.21644093]
[1764727506084,3.2162093,3024.8,3024.1,0.00864093]
[1764727506679,13.251,3024.7,3024.1,0.00864093]
[1764727507476,5.43683693,3024.2,3023.2,3.2078]
[1764727507681,3.2078,3023.8,3022.8,3.8942]
[1764727507873,11.614,3023.7,3022.8,3.8942]
[1764727508074,11.614,3023.7,3022.8,0.6864]
[1764727508283,11.614,3023.7,3022.8,3.8942]
[1764727508480,11.614,3023.7,3022.8,3.89705277]
[1764727508673,11.614,3023.7,3022.9,0.00495385]
[1764727508878,3.2078,3023.4,3022.9,0.00495385]
[1764727509479,3.2078,3023.0,3022.8,0.00285277]
[1764727509680,2.22903693,3022.9,3022.4,3.2078]
[1764727509878,2.22903693,3022.5,3022.4,3.2078]
[1764727510080,15.49703693,3022.5,3021.4,3.2078]
[1764727510390,12.1538,3022.4,3021.9,0.6864]
[1764727510577,3.21167339,3022.4,3021.9,0.68915444]
[1764727510779,0.00387339,3022.4,3021.9,3.89695444]
[1764727511380,3.2078,3022.8,3021.9,10.06237444]
[1764727511680,3.2078,3022.8,3021.9,3.89695444]
[1764727512382,3.2078,3022.4,3021.9,0.68915444]
[1764727512886,0.00496212,3022.7,3022.6,0.6864]
[1764727515887,0.00351921,3022.8,3022.6,0.6864]